fUSD/lending_fUSD_20260524
["ID","MTS","AMOUNT","RATE_DAILY","PERIOD"]
[422886314,1779574232000,-162.04,0.00024658,2]
[422886317,1779574232000,-228.0,0.00025,2]
[422886319,1779574232000,-358.0,0.00025,2]
[422886318,1779574232000,-332.0,0.00025,2]
[422886320,1779574232000,-215.31523495,0.00025033,2]
[422886325,1779574232000,-701.0,0.00025637,2]
[422886322,1779574232000,-200.0,0.00025442,2]
[422886323,1779574232000,-1000.0,0.000256,2]
[422886326,1779574232000,-701.0,0.00026192,3]
[422886324,1779574232000,-154.33,0.00025636,2]
[422886328,1779574232000,-3194.4623618,0.00026394,2]
[422886321,1779574232000,-701.0,0.00025082,2]
[422886329,1779574232000,-1948.12,0.00026461,2]
[422886327,1779574232000,-1596.9908529,0.00026394,2]
[422886330,1779574232000,-578.20924308,0.00026466,2]
[422886274,1779574232000,-151.0,0.000195,2]
[422886303,1779574232000,-154.33,0.00023073,2]
[422886305,1779574232000,-1896.82,0.00023699,14]
[422886313,1779574232000,-376.78777553,0.00024542,2]
[422886299,1779574232000,-167.91,0.00022999,2]
[422886306,1779574232000,-233.23290988,0.00023729,2]
[422886280,1779574232000,-352.0,0.0002,2]
[422886278,1779574232000,-209.0,0.0002,2]
[422886281,1779574232000,-154.33,0.00020509,2]
[422886279,1779574232000,-313.0,0.0002,2]
[422886282,1779574232000,-150.0,0.00020665,2]
[422886283,1779574232000,-169.2,0.00020798,2]
[422886284,1779574232000,-167.91,0.00020908,2]
[422886286,1779574232000,-313.0,0.00021,2]
[422886285,1779574232000,-209.0,0.00021,2]
[422886287,1779574232000,-352.0,0.00021,2]
[422886288,1779574232000,-1948.12,0.00021169,2]
[422886295,1779574232000,-313.0,0.00022,2]
[422886289,1779574232000,-154.33,0.00021364,2]
[422886277,1779574232000,-400.0,0.0002,2]
[422886294,1779574232000,-209.0,0.00022,2]
[422886292,1779574232000,-5000.0,0.00021918,2]
[422886291,1779574232000,-500.0,0.000219,2]
[422886293,1779574232000,-167.91,0.00021953,2]
[422886296,1779574232000,-352.0,0.00022,2]
[422886331,1779574232000,-623.58710447,0.00026466,2]
[422886297,1779574232000,-154.33,0.00022218,2]
[422886298,1779574232000,-167.91,0.00022476,2]
[422886307,1779574232000,-3635.0,0.00023729,2]
[422886301,1779574232000,-313.0,0.00023,2]
[422886304,1779574232000,-223.64573251,0.00023599,2]
[422886290,1779574232000,-167.91,0.00021431,2]
[422886334,1779574233000,-701.0,0.00026746,3]
[422886332,1779574233000,-154.33,0.00026491,2]
[422886333,1779574233000,-3635.0,0.00026729,2]
[422886336,1779574233000,-4118.3169,0.00027101,2]
[422886337,1779574233000,-2500.0,0.00027101,2]
[422886339,1779574233000,-911.72705474,0.00027101,2]
[422886338,1779574233000,-5149.91258287,0.00027101,2]
[422886335,1779574233000,-913.545,0.00027,15]
[422886366,1779574238000,-500.0,0.000272,2]
[422886364,1779574238000,-500.0,0.000272,2]
[422886357,1779574238000,-500.0,0.000272,2]
[422886360,1779574238000,-500.0,0.000272,2]
[422886359,1779574238000,-500.0,0.000272,2]
[422886356,1779574238000,-500.0,0.000272,2]
[422886353,1779574238000,-500.0,0.000272,2]
[422886351,1779574238000,-500.0,0.000272,2]
[422886362,1779574238000,-500.0,0.000272,2]
[422886358,1779574238000,-500.0,0.000272,2]
[422886361,1779574238000,-500.0,0.000272,2]
[422886352,1779574238000,-500.0,0.000272,2]
[422886354,1779574238000,-500.0,0.000272,2]
[422886350,1779574238000,-500.0,0.000272,2]
[422886347,1779574238000,-528.0,0.00027101,10]
[422886349,1779574238000,-742.87246239,0.00027101,2]
[422886363,1779574238000,-500.0,0.000272,2]
[422886355,1779574238000,-500.0,0.000272,2]
[422886367,1779574238000,-500.0,0.000272,2]
[422886387,1779574238000,-338.28950705,0.000272,2]
[422886374,1779574238000,-412.63568042,0.000272,2]
[422886372,1779574238000,-500.0,0.000272,2]
[422886386,1779574238000,-500.0,0.000272,2]
[422886385,1779574238000,-455.65392195,0.000272,2]
[422886381,1779574238000,-255.65392195,0.000272,2]
[422886382,1779574238000,-500.0,0.000272,2]
[422886383,1779574238000,-500.0,0.000272,2]
[422886384,1779574238000,-44.34607805,0.000272,2]
[422886379,1779574238000,-500.0,0.000272,2]
[422886378,1779574238000,-500.0,0.000272,2]
[422886380,1779574238000,-244.34607805,0.000272,2]
[422886376,1779574238000,-500.0,0.000272,2]
[422886375,1779574238000,-87.36431958,0.000272,2]
[422886368,1779574238000,-500.0,0.000272,2]
[422886369,1779574238000,-500.0,0.000272,2]
[422886371,1779574238000,-500.0,0.000272,2]
[422886365,1779574238000,-500.0,0.000272,2]
[422886370,1779574238000,-500.0,0.000272,2]
[422886377,1779574238000,-268.28960237,0.000272,2]
[422886373,1779574238000,-500.0,0.000272,2]
[422886419,1779574240000,-210.70318294,0.000272,2]
[422886416,1779574240000,-478.61318294,0.000272,2]
[422886417,1779574240000,-289.29681706,0.000272,2]
[422886415,1779574240000,-21.38681706,0.000272,2]
[422886414,1779574240000,-161.71049295,0.000272,2]
[422886418,1779574240000,-422.0,0.000272,10]
[422886413,1779574240000,-461.0,0.000272,10]
[422886421,1779574240000,-500.0,0.000272,2]
[422886427,1779574240000,-500.0,0.000272,2]
[422886433,1779574240000,-3283.849587,0.00027201,2]
[422886420,1779574240000,-500.0,0.000272,2]
[422886422,1779574240000,-200.0,0.000272,2]
[422886423,1779574240000,-500.0,0.000272,2]
[422886425,1779574240000,-500.0,0.000272,2]
[422886429,1779574240000,-500.0,0.000272,2]
[422886424,1779574240000,-500.0,0.000272,2]
[422886431,1779574240000,-283.44723005,0.000272,2]
[422886466,1779574246000,-51414.10214643,0.00027201,2]
[422886478,1779574246000,-937.6,0.00027397,20]
[422886464,1779574246000,-64920.73575985,0.00027201,2]
[422886460,1779574246000,-931.0,0.00023436,2]
[422886462,1779574246000,-492.0,0.00027201,10]
[422886463,1779574246000,-266.0,0.00027201,10]
[422886461,1779574246000,-931.0,0.00026436,2]
[422886465,1779574246000,-8289.14680162,0.00027201,2]
[422886477,1779574246000,-300.0,0.00027397,2]
[422886467,1779574246000,-39144.85979316,0.00027201,2]
[422886479,1779574246000,-6140.95743735,0.00027397,10]
[422886475,1779574246000,-1500.0,0.00027397,2]
[422886472,1779574246000,-413.64,0.0002739,2]
[422886471,1779574246000,-154.33,0.00027346,2]
[422886476,1779574246000,-162.04,0.00027397,2]
[422886468,1779574246000,-68.04501194,0.00027201,2]
[422886470,1779574246000,-701.0,0.00027301,4]
[422886474,1779574246000,-150.0,0.00027397,30]
[422886469,1779574246000,-392.04304965,0.00027297,2]
[422886473,1779574246000,-191.5,0.0002739,2]
[422886519,1779575432000,-500.0,0.00014725,2]
[422886516,1779575432000,-150.0,0.00014725,2]
[422886507,1779575432000,-170.13,0.00014634,2]
[422886512,1779575432000,-500.0,0.00014725,2]
[422886510,1779575432000,-500.0,0.00014725,2]
[422886518,1779575432000,-500.0,0.00014725,2]
[422886517,1779575432000,-150.0,0.00014725,2]
[422886520,1779575432000,-500.0,0.00014725,2]
[422886522,1779575432000,-500.0,0.00014725,2]
[422886528,1779575432000,-500.0,0.00014725,2]
[422886524,1779575432000,-500.0,0.00014725,2]
[422886509,1779575432000,-300.0,0.000147,5]
[422886526,1779575432000,-500.0,0.00014725,2]
[422886525,1779575432000,-159.77369082,0.00014725,2]
[422886527,1779575432000,-500.0,0.00014725,2]
[422886523,1779575432000,-500.0,0.00014725,2]
[422886529,1779575432000,-500.0,0.00014725,2]
[422886521,1779575432000,-500.0,0.00014725,2]
[422886515,1779575432000,-150.0,0.00014725,2]
[422886505,1779575432000,-736.0,0.00014123,2]
[422886508,1779575432000,-730.836,0.000147,2]
[422886489,1779575432000,-300.0,0.00010699,2]
[422886490,1779575432000,-1046.83,0.00010699,2]
[422886491,1779575432000,-153.17,0.00010699,2]
[422886492,1779575432000,-150.0,0.00010699,2]
[422886493,1779575432000,-58257.45428758,0.000107,2]
[422886495,1779575432000,-255.0,0.00011737,2]
[422886496,1779575432000,-420.0,0.00011761,2]
[422886497,1779575432000,-1680.0,0.00011769,2]
[422886511,1779575432000,-500.0,0.00014725,2]
[422886500,1779575432000,-2351.0,0.00012946,2]
[422886501,1779575432000,-207.2332033,0.00013223,2]
[422886498,1779575432000,-433.0,0.00012871,2]
[422886494,1779575432000,-15367.12247019,0.000107,2]
[422886502,1779575432000,-156.7,0.00013853,2]
[422886503,1779575432000,-250.0,0.00014,2]
[422886504,1779575432000,-11514.88,0.00014079,2]
[422886530,1779575432000,-500.0,0.00014725,2]
[422886506,1779575432000,-3292.0,0.0001424,2]
[422886499,1779575432000,-285.0,0.00012928,2]
[422886532,1779575432000,-164.11863008,0.00014725,2]
[422886514,1779575432000,-206.0,0.00014725,2]
[422886537,1779575432000,-700.0,0.000148,5]
[422886558,1779575432000,-500.0,0.00014999,2]
[422886560,1779575432000,-500.0,0.00014999,2]
[422886561,1779575432000,-500.0,0.00014999,2]
[422886563,1779575432000,-500.0,0.00014999,2]
[422886564,1779575432000,-500.0,0.00014999,2]
[422886565,1779575432000,-500.0,0.00014999,2]
[422886566,1779575432000,-500.0,0.00014999,2]
[422886568,1779575432000,-500.0,0.00014999,2]
[422886559,1779575432000,-500.0,0.00014999,2]
[422886567,1779575432000,-500.0,0.00014999,2]
[422886570,1779575432000,-500.0,0.00014999,2]
[422886571,1779575432000,-500.0,0.00014999,2]
[422886572,1779575432000,-500.0,0.00014999,2]
[422886573,1779575432000,-500.0,0.00014999,2]
[422886574,1779575432000,-500.0,0.00014999,2]
[422886576,1779575432000,-500.0,0.00014999,2]
[422886575,1779575432000,-500.0,0.00014999,2]
[422886534,1779575432000,-480.0,0.00014725,2]
[422886569,1779575432000,-389.0684422,0.00014999,2]
[422886555,1779575432000,-500.0,0.00014999,2]
[422886562,1779575432000,-500.0,0.00014999,2]
[422886551,1779575432000,-500.0,0.00014999,2]
[422886540,1779575432000,-343.03766847,0.000149,2]
[422886538,1779575432000,-192.54277369,0.000149,2]
[422886536,1779575432000,-300.62772343,0.000148,2]
[422886539,1779575432000,-1000.0,0.000149,5]
[422886556,1779575432000,-500.0,0.00014999,2]
[422886542,1779575432000,-500.0,0.00014999,2]
[422886544,1779575432000,-500.0,0.00014999,2]
[422886541,1779575432000,-500.0,0.00014999,2]
[422886546,1779575432000,-500.0,0.00014999,2]
[422886543,1779575432000,-500.0,0.00014999,2]
[422886547,1779575432000,-500.0,0.00014999,2]
[422886548,1779575432000,-500.0,0.00014999,2]
[422886550,1779575432000,-500.0,0.00014999,2]
[422886549,1779575432000,-500.0,0.00014999,2]
[422886557,1779575432000,-500.0,0.00014999,2]
[422886552,1779575432000,-500.0,0.00014999,2]
[422886553,1779575432000,-500.0,0.00014999,2]
[422886554,1779575432000,-500.0,0.00014999,2]
[422886545,1779575432000,-500.0,0.00014999,2]
[422886586,1779575433000,-500.0,0.00014999,2]
[422886584,1779575433000,-500.0,0.00014999,2]
[422886583,1779575433000,-200.0,0.00014999,2]
[422886585,1779575433000,-500.0,0.00014999,2]
[422886580,1779575433000,-500.0,0.00014999,2]
[422886581,1779575433000,-500.0,0.00014999,2]
[422886579,1779575433000,-500.0,0.00014999,2]
[422886582,1779575433000,-500.0,0.00014999,2]
[422886577,1779575433000,-500.0,0.00014999,2]
[422886589,1779575433000,-500.0,0.00014999,2]
[422886578,1779575433000,-500.0,0.00014999,2]
[422886592,1779575433000,-500.0,0.00014999,2]
[422886601,1779575433000,-1254.41808677,0.00015,2]
[422886588,1779575433000,-500.0,0.00014999,2]
[422886594,1779575433000,-500.0,0.00014999,2]
[422886600,1779575433000,-11435.0462108,0.00015,2]
[422886598,1779575433000,-174.42366676,0.00014999,2]
[422886597,1779575433000,-500.0,0.00014999,2]
[422886595,1779575433000,-500.0,0.00014999,2]
[422886599,1779575433000,-441.26268533,0.00014999,2]
[422886590,1779575433000,-500.0,0.00014999,2]
[422886593,1779575433000,-500.0,0.00014999,2]
[422886587,1779575433000,-500.0,0.00014999,2]
[422886591,1779575433000,-500.0,0.00014999,2]
[422886596,1779575433000,-648.98360421,0.00014999,2]
[422886617,1779575438000,-297.35364,0.00015068,2]
[422886625,1779575438000,-1925.0,0.00015664,2]
[422886623,1779575438000,-3393.60103392,0.000156,2]
[422886622,1779575438000,-436.0,0.00015492,2]
[422886621,1779575438000,-3393.60103392,0.000154,2]
[422886619,1779575438000,-3393.60103392,0.000151,2]
[422886620,1779575438000,-3393.60103392,0.000153,2]
[422886618,1779575438000,-297.35364,0.00015068,2]
[422886611,1779575438000,-3438.36759962,0.000149,2]
[422886613,1779575438000,-1536829.08801695,0.00015,2]
[422886615,1779575438000,-297.35364,0.00015068,2]
[422886614,1779575438000,-161.26018,0.00015,2]
[422886612,1779575438000,-395523.02019316,0.00015,2]
[422886610,1779575438000,-494.0,0.00014725,2]
[422886608,1779575438000,-9.02869033,0.00014725,2]
[422886607,1779575438000,-500.0,0.00014725,2]
[422886627,1779575438000,-3393.60103392,0.000157,2]
[422886616,1779575438000,-297.35364,0.00015068,2]
[422886637,1779575438000,-3393.60103392,0.000161,2]
[422886609,1779575438000,-490.97130967,0.00014725,2]
[422886629,1779575438000,-3393.60103392,0.000159,2]
[422886635,1779575438000,-680.78916923,0.00016,2]
[422886663,1779575438000,-3393.60103392,0.000165,2]
[422886661,1779575438000,-170.13,0.00016464,2]
[422886659,1779575438000,-230.11,0.00016438,2]
[422886650,1779575438000,-171.58701,0.00016438,2]
[422886656,1779575438000,-2925.595349,0.00016438,2]
[422886646,1779575438000,-171.58701,0.00016438,2]
[422886654,1779575438000,-2925.595349,0.00016438,2]
[422886648,1779575438000,-171.58701,0.00016438,2]
[422886665,1779575438000,-192.54277369,0.00016581,2]
[422886657,1779575438000,-2925.595349,0.00016438,2]
[422886652,1779575438000,-2925.595349,0.00016438,2]
[422886644,1779575438000,-171.58701,0.00016438,2]
[422886638,1779575438000,-680.78916923,0.000161,2]
[422886641,1779575438000,-3393.60103392,0.000164,2]
[422886640,1779575438000,-680.78916923,0.000162,2]
[422886639,1779575438000,-3393.60103392,0.000162,2]
[422886633,1779575438000,-300.0,0.00016,2]
[422886631,1779575438000,-150.0,0.00015956,2]
[422886642,1779575438000,-2674.4,0.00016438,2]
[422886757,1779575439000,-696.937149,0.00019178,2]
[422886763,1779575439000,-696.937149,0.00019178,2]
[422886756,1779575439000,-263.3307155,0.00019178,2]
[422886752,1779575439000,-250.0,0.00019178,2]
[422886750,1779575439000,-250.0,0.00019178,2]
[422886740,1779575439000,-1352.1803016,0.000191,2]
[422886736,1779575439000,-1352.1803016,0.000189,2]
[422886746,1779575439000,-150.0,0.00019178,2]
[422886744,1779575439000,-150.0,0.00019178,2]
[422886742,1779575439000,-150.0,0.00019178,2]
[422886738,1779575439000,-1047.74094533,0.000191,2]
[422886735,1779575439000,-1047.74094533,0.000189,2]
[422886754,1779575439000,-250.0,0.00019178,2]
[422886748,1779575439000,-207.5035293,0.00019178,2]
[422886761,1779575439000,-696.937149,0.00019178,2]
[422886779,1779575439000,-696.937149,0.00019178,2]
[422886768,1779575439000,-696.937149,0.00019178,2]
[422886772,1779575439000,-696.937149,0.00019178,2]
[422886770,1779575439000,-696.937149,0.00019178,2]
[422886774,1779575439000,-696.937149,0.00019178,2]
[422886776,1779575439000,-696.937149,0.00019178,2]
[422886786,1779575439000,-269.618697,0.00019178,2]
[422886778,1779575439000,-696.937149,0.00019178,2]
[422886787,1779575439000,-269.618697,0.00019178,2]
[422886733,1779575439000,-1352.1803016,0.000187,2]
[422886781,1779575439000,-269.618697,0.00019178,2]
[422886785,1779575439000,-269.618697,0.00019178,2]
[422886784,1779575439000,-269.618697,0.00019178,2]
[422886783,1779575439000,-269.618697,0.00019178,2]
[422886789,1779575439000,-269.618697,0.00019178,2]
[422886765,1779575439000,-696.937149,0.00019178,2]
[422886723,1779575439000,-1352.1803016,0.000184,2]
[422886705,1779575439000,-1352.1803016,0.000182,2]
[422886731,1779575439000,-1047.74094533,0.000187,2]
[422886667,1779575439000,-150.0,0.00016641,2]
[422886680,1779575439000,-28224.31514589,0.000179,2]
[422886673,1779575439000,-156.7,0.00017316,2]
[422886682,1779575439000,-28224.31514587,0.000179,2]
[422886675,1779575439000,-2500.0,0.00017847,2]
[422886684,1779575439000,-28224.31514587,0.000179,2]
[422886671,1779575439000,-343.03766842,0.00017186,2]
[422886677,1779575439000,-2000.0,0.00017847,2]
[422886669,1779575439000,-168.55,0.00016712,2]
[422886678,1779575439000,-1800.0,0.00017847,7]
[422886690,1779575439000,-297.35364,0.000179,2]
[422886686,1779575439000,-28224.31514587,0.000179,2]
[422886688,1779575439000,-297.35364,0.000179,2]
[422886694,1779575439000,-297.35364,0.000179,2]
[422886729,1779575439000,-1352.1803016,0.000185,2]
[422886692,1779575439000,-297.35364,0.000179,2]
[422886696,1779575439000,-206.28717821,0.00018,2]
[422886707,1779575439000,-192.54277369,0.00018262,2]
[422886711,1779575439000,-297.35364,0.00018356,2]
[422886709,1779575439000,-170.13,0.00018293,2]
[422886700,1779575439000,-1352.1803016,0.00018,2]
[422886702,1779575439000,-1047.74094533,0.000182,2]
[422886788,1779575439000,-269.618697,0.00019178,2]
[422886715,1779575439000,-297.35364,0.00018356,2]
[422886713,1779575439000,-297.35364,0.00018356,2]
[422886721,1779575439000,-1047.74094533,0.000184,2]
[422886717,1779575439000,-297.35364,0.00018356,2]
[422886719,1779575439000,-89611.02,0.00018356,2]
[422886725,1779575439000,-2674.4,0.0001841,2]
[422886727,1779575439000,-1047.74094533,0.000185,2]
[422886698,1779575439000,-1047.74094533,0.00018,2]
[422886791,1779575439000,-269.618697,0.00019178,2]
[422886759,1779575439000,-696.937149,0.00019178,2]
[422886792,1779575439000,-269.618697,0.00019178,2]
[422886825,1779575439000,-238.60871557,0.0001985,2]
[422886828,1779575439000,-247.43723804,0.0001985,2]
[422886829,1779575439000,-151.0,0.0001985,2]
[422886830,1779575439000,-256.59241585,0.0001985,2]
[422886832,1779575439000,-500.0,0.0001985,2]
[422886833,1779575439000,-266.08633524,0.0001985,2]
[422886831,1779575439000,-151.0,0.0001985,2]
[422886835,1779575439000,-275.93152964,0.0001985,2]
[422886838,1779575439000,-1798.80895522,0.0001985,2]
[422886837,1779575439000,-151.0,0.0001985,2]
[422886840,1779575439000,-286.14099624,0.0001985,2]
[422886841,1779575439000,-500.0,0.0001985,2]
[422886834,1779575439000,-151.0,0.0001985,2]
[422886839,1779575439000,-151.0,0.0001985,2]
[422886836,1779575439000,-500.0,0.0001985,2]
[422886842,1779575439000,-151.0,0.0001985,2]
[422886844,1779575439000,-151.0,0.0001985,2]
[422886857,1779575439000,-151.0,0.0001985,2]
[422886856,1779575439000,-500.0,0.0001985,2]
[422886855,1779575439000,-151.0,0.0001985,2]
[422886851,1779575439000,-151.0,0.0001985,2]
[422886850,1779575439000,-151.0,0.0001985,2]
[422886853,1779575439000,-500.0,0.0001985,2]
[422886823,1779575439000,-151.0,0.0001985,2]
[422886790,1779575439000,-269.618697,0.00019178,2]
[422886847,1779575439000,-151.0,0.0001985,2]
[422886849,1779575439000,-151.0,0.0001985,2]
[422886848,1779575439000,-319.09232179,0.0001985,2]
[422886846,1779575439000,-500.0,0.0001985,2]
[422886845,1779575439000,-307.70715698,0.0001985,2]
[422886843,1779575439000,-296.7282131,0.0001985,2]
[422886852,1779575439000,-151.0,0.0001985,2]
[422886827,1779575439000,-500.0,0.0001985,2]
[422886854,1779575439000,-151.0,0.0001985,2]
[422886826,1779575439000,-151.0,0.0001985,2]
[422886822,1779575439000,-500.0,0.0001985,2]
[422886793,1779575439000,-269.618697,0.00019178,2]
[422886795,1779575439000,-159.701475,0.00019178,2]
[422886794,1779575439000,-151.0,0.00019178,2]
[422886796,1779575439000,-1047.74094533,0.000193,2]
[422886798,1779575439000,-150.99,0.00019339,2]
[422886800,1779575439000,-3153.97,0.00019339,2]
[422886797,1779575439000,-1352.1803016,0.000193,2]
[422886801,1779575439000,-299.99,0.00019339,7]
[422886802,1779575439000,-343.03766842,0.00019471,2]
[422886803,1779575439000,-1047.74094533,0.000195,2]
[422886804,1779575439000,-1352.1803016,0.000195,2]
[422886805,1779575439000,-1047.74094533,0.000197,2]
[422886807,1779575439000,-200.0,0.0001985,2]
[422886806,1779575439000,-1352.1803016,0.000197,2]
[422886799,1779575439000,-9999.99,0.00019339,2]
[422886809,1779575439000,-151.0,0.0001985,2]
[422886819,1779575439000,-221.88543241,0.0001985,2]
[422886824,1779575439000,-151.0,0.0001985,2]
[422886820,1779575439000,-151.0,0.0001985,2]
[422886817,1779575439000,-213.96859442,0.0001985,2]
[422886818,1779575439000,-151.0,0.0001985,2]
[422886815,1779575439000,-206.33422798,0.0001985,2]
[422886821,1779575439000,-230.09519341,0.0001985,2]
[422886812,1779575439000,-191.87295522,0.0001985,2]
[422886810,1779575439000,-151.0,0.0001985,2]
[422886814,1779575439000,-198.97225456,0.0001985,2]
[422886808,1779575439000,-151.0,0.0001985,2]
[422886813,1779575439000,-151.0,0.0001985,2]
[422886811,1779575439000,-151.0,0.0001985,2]
[422886816,1779575439000,-151.0,0.0001985,2]
[422886897,1779575440000,-173.36278918,0.0002,2]
[422886895,1779575440000,-150.0,0.0002,2]
[422886894,1779575440000,-150.0,0.0002,2]
[422886892,1779575440000,-150.0,0.0002,2]
[422886893,1779575440000,-150.0,0.0002,2]
[422886888,1779575440000,-176.00882037,0.0002,2]
[422886891,1779575440000,-150.0,0.0002,20]
[422886889,1779575440000,-176.00882037,0.0002,2]
[422886887,1779575440000,-176.00882037,0.0002,2]
[422886886,1779575440000,-176.00882037,0.0002,2]
[422886890,1779575440000,-176.00882037,0.0002,2]
[422886896,1779575440000,-150.0,0.0002,2]
[422886908,1779575440000,-150.0,0.0002058,2]
[422886899,1779575440000,-2674.4,0.00020381,2]
[422886900,1779575440000,-200.0,0.00020398,2]
[422886902,1779575440000,-151.0,0.00020398,2]
[422886903,1779575440000,-1865.36488656,0.00020398,2]
[422886911,1779575440000,-150.0,0.0002058,2]
[422886905,1779575440000,-1376.74,0.00020548,2]
[422886906,1779575440000,-21830.27,0.00020548,2]
[422886904,1779575440000,-210128.0,0.000204,2]
[422886909,1779575440000,-150.0,0.0002058,2]
[422886907,1779575440000,-150.0,0.0002058,2]
[422886885,1779575440000,-2171.0,0.0002,2]
[422886898,1779575440000,-170.13,0.00020122,2]
[422886882,1779575440000,-2539.0,0.0002,2]
[422886866,1779575440000,-151.0,0.0001985,2]
[422886884,1779575440000,-2000.0,0.0002,7]
[422886910,1779575440000,-150.0,0.0002058,2]
[422886858,1779575440000,-151.0,0.0001985,2]
[422886859,1779575440000,-500.0,0.0001985,2]
[422886861,1779575440000,-151.0,0.0001985,2]
[422886862,1779575440000,-500.0,0.0001985,2]
[422886865,1779575440000,-151.0,0.0001985,2]
[422886863,1779575440000,-151.0,0.0001985,2]
[422886860,1779575440000,-151.0,0.0001985,2]
[422886864,1779575440000,-500.0,0.0001985,2]
[422886871,1779575440000,-151.0,0.0001985,2]
[422886867,1779575440000,-151.0,0.0001985,2]
[422886883,1779575440000,-203.0,0.0002,2]
[422886868,1779575440000,-500.0,0.0001985,2]
[422886869,1779575440000,-151.0,0.0001985,2]
[422886873,1779575440000,-500.0,0.0001985,2]
[422886875,1779575440000,-192.54277369,0.00019943,2]
[422886874,1779575440000,-500.0,0.0001985,2]
[422886872,1779575440000,-151.0,0.0001985,2]
[422886877,1779575440000,-441.0,0.0002,2]
[422886879,1779575440000,-196.0,0.0002,2]
[422886876,1779575440000,-154.0,0.0002,2]
[422886878,1779575440000,-152.0,0.0002,2]
[422886880,1779575440000,-530.0,0.0002,2]
[422886881,1779575440000,-543.0,0.0002,2]
[422886870,1779575440000,-500.0,0.0001985,2]
[422886912,1779575440000,-150.0,0.0002058,2]
[422886959,1779575440000,-2384.74491468,0.00021918,2]
[422886915,1779575440000,-156.7,0.00020779,2]
[422886938,1779575440000,-530.0,0.00021,2]
[422886944,1779575440000,-2925.595349,0.000211,2]
[422886946,1779575440000,-171.58701,0.000212,2]
[422886948,1779575440000,-171.58701,0.000212,2]
[422886947,1779575440000,-171.58701,0.000212,2]
[422886949,1779575440000,-171.58701,0.000212,2]
[422886951,1779575440000,-2005.9555727,0.00021494,2]
[422886950,1779575440000,-200.0,0.00021494,2]
[422886952,1779575440000,-192.54277369,0.00021624,2]
[422886956,1779575440000,-500.0,0.00021853,14]
[422886954,1779575440000,-478.7,0.00021815,2]
[422886943,1779575440000,-2925.595349,0.000211,2]
[422886955,1779575440000,-478.75,0.00021815,2]
[422886958,1779575440000,-1005.42,0.00021918,2]
[422886960,1779575440000,-3077.96,0.00021918,2]
[422886964,1779575440000,-160.0358,0.00021918,2]
[422886962,1779575440000,-151.0,0.00021918,2]
[422886967,1779575440000,-151.0,0.00021918,2]
[422886961,1779575440000,-151.0,0.00021918,2]
[422886963,1779575440000,-151.0,0.00021918,2]
[422886965,1779575440000,-151.0,0.00021918,2]
[422886966,1779575440000,-151.0,0.00021918,2]
[422886968,1779575440000,-151.0,0.00021918,2]
[422886913,1779575440000,-150.0,0.0002058,2]
[422886957,1779575440000,-500.0,0.000219,2]
[422886945,1779575440000,-5530.0,0.000211,5]
[422886953,1779575440000,-343.03766842,0.00021757,2]
[422886939,1779575440000,-543.0,0.00021,2]